{"text_format":"1","workbook":"xlsx","n_sheets":8,"sheets":["Home","Article","Order","Po","Booking","Supplier","Customer","Config"],"not_rendered":{"charts":0,"images":1,"macros":1,"external_links":0,"defined_names":13,"comments":0,"pivot_tables":0},"unopened":[],"bounds":{"document_bytes":16777216,"sheet_cells":100000,"rows_first":2000,"rows_last":500,"rows_between":2000,"halvings":0,"cell_chars":16384,"cell_head_chars":4096},"cells_cut":0,"cells_raw":0,"read":"whole","date_system":"1900"}

{"sheet":"Home","index":0,"n_rows":0,"n_cols":0,"rows_kept":0,"cut":false,"hidden":false,"merged":[]}

{"sheet":"Article","index":1,"n_rows":10,"n_cols":22,"rows_kept":10,"cut":false,"hidden":false,"merged":[]}
[]
[]
[]
[null,null,null,null,null,null,null,null,null,null,null,1,2,3,4,5,6,7,8,9,10]
[null,"Nr Article","Nom","Description","Prix unité","Stock","Valeur Stock","stock min.","Flag","Statuts","Vide","1","2","22","4","5","6","7","8","9","10",">10"]
[null,"art1",null,null,null,20,{"$f":"E6*F6","v":0},15,{"$f":"IF(F6<H6,1,\"\")","v":""},"Active"]
[null,"art2",null,null,null,15,{"$f":"E7*F7","v":0},1,{"$f":"IF(F7<H7,1,\"\")","v":""},"Active"]
[null,"ART-00001","test","test",1.5,5,{"$f":"E8*F8","v":7.5},null,null,"Active"]
[null,"ART-00002","test","test",2.5,5,12.5,5,null,"Active"]
[null,"ART-00003","test3","test3",2,5,{"$f":"E10*F10","v":10},5,null,"Active"]

{"sheet":"Order","index":2,"n_rows":6,"n_cols":9,"rows_kept":6,"cut":false,"hidden":false,"merged":[]}
[]
[]
[]
[]
[null,"N°commande","Date","N° article","nom","nombre","prix","prix total","fournisseur"]
[null," ",null,null,null,null,null,{"$f":"F6*G6","v":0}]

{"sheet":"Po","index":3,"n_rows":0,"n_cols":0,"rows_kept":0,"cut":false,"hidden":false,"merged":[]}

{"sheet":"Booking","index":4,"n_rows":0,"n_cols":0,"rows_kept":0,"cut":false,"hidden":false,"merged":[]}

{"sheet":"Supplier","index":5,"n_rows":19,"n_cols":9,"rows_kept":19,"cut":false,"hidden":false,"merged":[]}
[]
[]
[]
[]
[null,"Nom","Adress","Cp","Ville","Pays","Téléphone","Mail","Group"]
[null,"Joachim1","adress1",111,"Paris","France",111111,"joachim@gmail.com",{"$f":"CONCATENATE(LEFT(F6,2),\"-\",D6,\",\",E6)","v":"Fr-111,Paris"}]
[null,"Joachim2","adress2",112,"Paris","France",111112,"joachim@gmail.com",{"$f":"CONCATENATE(LEFT(F7,2),\"-\",D7,\",\",E7)","v":"Fr-112,Paris"}]
[null,"Joachim3","adress3",113,"Paris","France",111113,"joachim@gmail.com","Fr-113,Paris"]
[null,"Joachim4","adress4",114,"Paris","France",111114,"joachim@gmail.com","Fr-114,Paris"]
[null,"Joachim5","adress5",115,"Paris","France",111115,"joachim@gmail.com","Fr-115,Paris"]
[null,"Joachim6","adress6",116,"Paris","France",111116,"joachim@gmail.com","Fr-116,Paris"]
[null,"Joachim7","adress7",117,"Paris","France",111117,"joachim@gmail.com","Fr-117,Paris"]
[null,"Joachim8","adress8",118,"Paris","France",111118,"joachim@gmail.com","Fr-118,Paris"]
[null,"Joachim9","adress9",119,"Paris","France",111119,"joachim@gmail.com","Fr-119,Paris"]
[null,"Joachim10","adress10",120,"Paris","France",111120,"joachim@gmail.com","Fr-120,Paris"]
[null,"Joachim11","adress11",121,"Paris","France",111121,"joachim@gmail.com","Fr-121,Paris"]
[null,"Joachim12","adress12",122,"Paris","France",111122,"joachim@gmail.com","Fr-122,Paris"]
[null,"Joachim13","adress13",123,"Paris","France",111123,"joachim@gmail.com","Fr-123,Paris"]
[null,"Joachim14","adress14",124,"Paris","France",111124,"joachim@gmail.com","Fr-124,Paris"]

{"sheet":"Customer","index":6,"n_rows":19,"n_cols":9,"rows_kept":19,"cut":false,"hidden":false,"merged":[]}
[]
[]
[]
[]
[null,"Nom","Adress","Cp","Ville","Pays","Téléphone","Mail","Group"]
[null,"Belle1","adress1",1000,"Paris","Belgique",444555,"joachim@gmail.com",{"$f":"CONCATENATE(LEFT(F6,2),\"-\",D6,\",\",E6)","v":"Be-1000,Paris"}]
[null,"Belle2","adress2",1001,"Paris","Belgique",444556,"joachim@gmail.com",{"$f":"CONCATENATE(LEFT(F7,2),\"-\",D7,\",\",E7)","v":"Be-1001,Paris"}]
[null,"Belle3","adress3",1002,"Paris","Belgique",444557,"joachim@gmail.com","Be-1002,Paris"]
[null,"Belle4","adress4",1003,"Paris","Belgique",444558,"joachim@gmail.com","Be-1003,Paris"]
[null,"Belle5","adress5",1004,"Paris","Belgique",444559,"joachim@gmail.com","Be-1004,Paris"]
[null,"Belle6","adress6",1005,"Paris","Belgique",444560,"joachim@gmail.com","Be-1005,Paris"]
[null,"Belle7","adress7",1006,"Paris","Belgique",444561,"joachim@gmail.com","Be-1006,Paris"]
[null,"Belle8","adress8",1007,"Paris","Belgique",444562,"joachim@gmail.com","Be-1007,Paris"]
[null,"Belle9","adress9",1008,"Paris","Belgique",444563,"joachim@gmail.com","Be-1008,Paris"]
[null,"Belle10","adress10",1009,"Paris","Belgique",444564,"joachim@gmail.com","Be-1009,Paris"]
[null,"Belle11","adress11",1010,"Paris","Belgique",444565,"joachim@gmail.com","Be-1010,Paris"]
[null,"Belle12","adress12",1011,"Paris","Belgique",444566,"joachim@gmail.com","Be-1011,Paris"]
[null,"Belle13","adress13",1012,"Paris","Belgique",444567,"joachim@gmail.com","Be-1012,Paris"]
[null,"Belle14","adress14",1013,"Paris","Belgique",444568,"joachim@gmail.com","Be-1013,Paris"]

{"sheet":"Config","index":7,"n_rows":20,"n_cols":5,"rows_kept":20,"cut":false,"hidden":false,"merged":[]}
[]
[]
[]
[]
[]
[]
[]
[]
[]
[]
[]
[]
[]
[]
[]
[]
[null," Suffixe"]
[]
[null,"Article","ART-",4,{"$f":"C19&TEXT(D19,\"00000\")","v":"ART-00004"}]
[null,"Order","ORD-",1,{"$f":"C20&TEXT(D20,\"00000\")","v":"ORD-00001"}]